bitfinex-derivatives/quotes_BNBF0:USTF0_20250608
["timestamp","ask_amount","ask_price","bid_price","bid_amount"]
[1749422486976,1.013,652.67,652.42,2.28435184]
[1749422487381,1.013,652.67,652.43,2.28435184]
[1749422487678,1.013,652.67,652.44,2.28435184]
[1749422488275,1.013,652.67,652.37,2.28435184]
[1749422488476,1.013,652.67,652.39,2.28435184]
[1749422489075,1.013,652.67,651.66,0.30690851]
[1749422489076,1.013,652.67,652.42,2.28435184]
[1749422489878,1.013,652.67,652.43,2.28435184]
[1749422492079,1.013,652.67,652.44,2.28435184]
[1749422492579,1.013,652.67,652.43,2.28435184]
[1749422493578,1.013,652.67,652.42,2.28435184]
[1749422493881,1.013,652.67,652.43,2.28435184]
[1749422495279,1.013,652.67,652.42,2.28435184]
[1749422495879,1.013,652.67,652.43,2.28435184]
[1749422496480,1.013,652.67,652.42,2.28435184]
[1749422497785,1.013,652.67,652.48,2.28435184]
[1749422497985,1.013,652.67,652.4,2.28435184]
[1749422498188,1.013,652.67,652.42,2.28435184]
[1749422498386,1.013,652.67,652.43,2.28435184]
[1749422498686,1.013,652.67,652.44,2.28435184]
[1749422499587,1.013,652.67,652.43,2.28435184]
[1749422500487,1.013,652.67,652.42,2.28435184]
[1749422502388,0.26658495,652.92,652.42,2.28435184]
[1749422502682,0.26658495,652.92,652.41,2.28435184]
[1749422502883,0.26658495,652.92,652.4,2.28435184]
[1749422503082,0.26658495,652.92,652.41,2.28435184]
[1749422504483,0.26658495,652.92,651.8,3.78666608]
[1749422504484,0.26658495,652.92,652.4,2.28435184]
[1749422505782,1.159,652.91,652.4,2.28435184]
[1749422506489,1.159,652.91,651.79,3.78666608]
[1749422506490,1.159,652.91,652.39,2.28435184]
[1749422507488,1.159,652.91,651.78,3.78666608]
[1749422507489,1.159,652.91,652.38,2.28435184]
[1749422507686,1.159,652.91,652.36,2.28435184]
[1749422507886,1.159,652.91,652.35,2.28435184]
[1749422509987,1.159,652.91,652.36,2.28435184]
[1749422513693,1.159,652.91,652.37,2.28435184]
[1749422514194,1.159,652.91,652.36,2.28435184]
[1749422514498,1.159,652.91,652.37,2.28435184]
[1749422514689,1.159,652.91,651.76,3.78666608]
[1749422514690,1.159,652.91,652.36,2.28435184]
[1749422515890,1.159,652.91,652.37,2.28435184]
[1749422517293,1.159,652.91,652.36,2.28435184]
[1749422517492,1.159,652.91,652.52,2.28435184]
[1749422518394,1.159,652.91,652.51,2.28435184]
[1749422518689,1.159,652.91,652.52,2.28435184]
[1749422520095,1.159,652.91,652.51,2.28435184]
[1749422521289,1.159,652.91,652.52,2.28435184]
[1749422521492,1.159,652.91,652.49,2.28435184]
[1749422521794,1.159,652.91,652.39,2.28435184]
[1749422522191,1.159,652.91,652.4,2.28435184]
[1749422522393,1.159,652.91,652.38,2.28435184]
[1749422524197,1.159,652.91,652.39,2.28435184]
[1749422524596,1.159,652.91,652.38,2.28435184]
[1749422524796,1.159,652.91,652.39,2.28435184]
[1749422525496,1.159,652.91,652.38,2.28435184]
[1749422525799,1.159,652.91,652.39,2.28435184]
[1749422525997,1.159,652.91,652.38,2.28435184]
[1749422526199,1.159,652.91,652.39,2.28435184]
[1749422526598,1.159,652.91,652.41,2.28435184]
[1749422530007,1.159,652.91,652.45,2.28435184]
[1749422531501,1.159,652.91,652.46,2.28435184]
[1749422535507,1.159,652.91,652.47,2.28435184]
[1749422536112,1.159,652.91,652.46,2.28435184]
[1749422536310,1.159,652.91,652.47,2.28435184]
[1749422542518,1.159,652.91,652.48,2.28435184]
[1749422543317,1.159,652.91,652.47,2.28435184]
[1749422543518,1.159,652.91,652.48,2.28435184]
[1749422545222,1.159,652.91,652.41,2.28435184]
[1749422547820,0.26658495,652.92,652.41,2.28435184]
[1749422548420,0.26658495,652.92,652.42,2.28435184]
[1749422548626,0.26658495,652.92,652.41,2.28435184]
[1749422549026,0.26658495,652.92,652.42,2.28435184]
[1749422549521,0.26658495,652.92,652.41,2.28435184]
[1749422550821,0.26658495,652.92,652.37,2.28435184]
[1749422551026,0.26658495,652.92,652.36,2.28435184]
[1749422551626,0.26658495,652.92,652.32,2.28435184]
[1749422551826,0.996,652.91,652.3,2.28435184]
[1749422555030,0.996,652.91,652.32,2.28435184]
[1749422556534,0.996,652.91,652.31,2.28435184]
[1749422558433,0.996,652.91,652.3,2.28435184]
[1749422560536,0.996,652.91,652.31,2.28435184]
[1749422560739,0.996,652.91,652.28,2.28435184]
[1749422561738,0.996,652.91,652.32,2.28435184]
[1749422561935,0.996,652.91,652.31,2.28435184]
[1749422562137,0.996,652.91,652.32,2.28435184]
[1749422566043,0.996,652.91,652.24,2.28435184]
[1749422567643,0.996,652.91,652.25,2.28435184]
[1749422570741,0.996,652.91,652.27,2.28435184]
[1749422572041,0.26658495,652.92,652.27,2.28435184]
[1749422572546,0.26658495,652.92,652.26,2.28435184]
[1749422573342,0.26658495,652.92,652.27,2.28435184]
[1749422574349,1.068,652.91,652.27,2.28435184]
[1749422575445,1.068,652.91,652.28,2.28435184]
[1749422575845,1.068,652.91,652.36,2.28435184]
[1749422576550,1.068,652.91,652.37,2.28435184]
[1749422578147,1.068,652.91,651.94,3.78666608]
[1749422578346,1.068,652.91,651.92,3.78666608]
[1749422578745,1.068,652.91,651.93,3.78666608]
[1749422582949,1.068,652.91,651.94,3.78666608]
[1749422583354,1.068,652.91,651.93,3.78666608]
[1749422583755,2.12464901,652.91,651.93,3.78666608]
[1749422583958,1.05664901,652.9,651.93,3.78666608]
[1749422584251,1.068,652.91,651.93,3.78666608]
[1749422585257,1.068,652.91,651.92,3.78666608]
[1749422587457,2.12464901,652.91,651.92,3.78666608]
[1749422587656,1.05664901,652.9,651.92,3.78666608]
[1749422588060,1.068,652.91,651.92,3.78666608]
[1749422588360,1.068,652.91,651.94,3.78666608]
[1749422588859,1.068,652.91,651.95,3.78666608]
[1749422590062,1.068,652.91,651.9,3.78666608]
[1749422590561,1.068,652.91,651.91,3.78666608]
[1749422592765,1.068,652.91,651.92,3.78666608]
[1749422593265,1.068,652.91,651.97,3.78666608]
[1749422594561,1.068,652.91,651.98,3.78666608]
[1749422598464,2.12464901,652.91,651.98,3.78666608]
[1749422598662,1.05664901,652.9,651.97,3.78666608]
[1749422599061,1.068,652.91,651.98,3.78666608]
[1749422600964,1.068,652.91,651.97,3.78666608]
[1749422601466,1.068,652.91,651.98,3.78666608]
[1749422602666,1.068,652.91,651.99,3.78666608]
[1749422603771,2.12464901,652.91,652.0,3.78666608]
[1749422604472,1.05664901,652.9,652.0,3.78666608]
[1749422604674,1.05664901,652.89,652.0,3.78666608]
[1749422604870,1.05664901,652.9,652.0,3.78666608]
[1749422605173,1.05664901,652.89,652.0,3.78666608]
[1749422605371,1.05664901,652.9,652.0,3.78666608]
[1749422605570,1.05664901,652.89,652.0,3.78666608]
[1749422605770,1.05664901,652.9,652.0,3.78666608]
[1749422606069,1.05664901,652.89,652.0,3.78666608]
[1749422606270,1.05664901,652.9,652.0,3.78666608]
[1749422606468,1.05664901,652.89,652.0,3.78666608]
[1749422606672,1.05664901,652.88,652.0,3.78666608]
[1749422606874,1.05664901,652.9,652.01,3.78666608]
[1749422607071,1.05664901,652.89,652.01,3.78666608]
[1749422607270,1.05664901,652.9,652.01,3.78666608]
[1749422607474,1.05664901,652.89,652.01,3.78666608]
[1749422607670,1.05664901,652.91,651.8,5.30133252]
[1749422607970,1.05664901,652.9,651.81,0.30683788]
[1749422608169,1.05664901,652.91,651.81,0.30683788]
[1749422608570,0.26658495,652.92,651.81,0.30683788]
[1749422609669,1.05664901,652.91,651.81,0.30683788]
[1749422609870,0.26658495,652.92,651.81,0.30683788]
[1749422611374,1.306,652.91,651.81,0.30683788]
[1749422617675,1.306,652.91,651.93,3.78666608]
[1749422617876,1.306,652.91,651.94,0.30677669]
[1749422619474,1.306,652.91,651.94,4.09344277]
[1749422619878,1.306,652.91,651.95,3.78666608]
[1749422620179,1.306,652.91,651.96,0.30676728]
[1749422622283,1.306,652.91,652.02,3.78666608]
[1749422622482,1.306,652.91,652.03,0.30673435]
[1749422627487,0.26658495,652.92,652.03,0.30673435]
[1749422628591,0.26658495,652.92,652.04,3.78666608]
[1749422628790,0.26658495,652.92,652.05,0.30672494]
[1749422631392,1.543,652.91,652.05,0.30672494]
[1749422637095,1.543,652.91,652.06,3.78666608]
[1749422637299,1.543,652.91,652.07,0.30671553]
[1749422639400,1.543,652.91,652.07,4.09338161]
[1749422640303,1.543,652.91,652.07,0.30671553]
[1749422648616,0.26658495,652.92,652.07,0.30671553]
[1749422651213,0.26658495,652.92,652.08,3.78666608]
[1749422651414,0.26658495,652.92,652.09,0.30670612]
[1749422651714,1.214,652.91,652.09,0.30670612]
[1749422652516,1.214,652.91,652.09,4.0933722]
[1749422653419,1.214,652.91,652.1,3.78666608]
[1749422653718,1.214,652.91,652.11,0.30669672]
[1749422653914,1.214,652.91,652.11,4.0933628]
[1749422654417,1.214,652.91,652.11,0.30669672]
[1749422661522,1.214,652.91,652.12,3.78666608]
[1749422661720,1.214,652.91,652.13,0.30668731]
[1749422663726,1.214,652.91,652.13,4.09335339]
[1749422664223,1.214,652.91,652.18,3.78666608]
[1749422664422,1.214,652.91,652.19,0.3066591]
[1749422665126,1.214,652.91,652.19,4.09332518]
[1749422665821,1.214,652.91,652.19,0.3066591]
[1749422666522,1.214,652.91,652.19,4.09332518]
[1749422667622,0.26658495,652.92,652.19,4.09332518]
[1749422668325,0.26658495,652.92,652.19,0.3066591]
[1749422670725,1.248,652.91,652.19,0.3066591]
[1749422672426,1.248,652.91,652.26,3.78666608]
[1749422672726,1.248,652.91,652.24,3.78666608]
[1749422674225,1.248,652.91,652.19,0.3066591]
[1749422686940,1.248,652.91,652.27,3.78666608]
[1749422688037,1.248,652.91,652.19,0.3066591]
[1749422706857,0.26658393,652.99,652.19,0.3066591]
[1749422709261,1.354,652.98,652.19,0.3066591]
[1749422719068,1.354,652.98,652.2,3.78666608]
[1749422719270,1.354,652.98,652.2,4.09332048]
[1749422719974,1.354,652.98,652.22,3.78666608]
[1749422720773,1.354,652.98,652.29,3.78666608]
[1749422721173,1.354,652.98,652.3,3.78666608]
[1749422721574,1.354,652.98,652.28,3.78666608]
[1749422722276,1.354,652.98,652.34,3.78666608]
[1749422725275,1.354,652.98,652.33,3.78666608]
[1749422727079,1.354,652.98,652.35,3.78666608]
[1749422727980,1.354,652.98,652.34,3.78666608]
[1749422728478,1.354,652.98,652.35,3.78666608]
[1749422728881,1.354,652.98,652.2,0.3066544]
[1749422762314,0.26658393,652.99,652.2,0.3066544]
[1749422765913,1.652,652.98,652.2,0.3066544]
[1749422799036,0.26658393,652.99,652.62,2.29560241]
[1749422799239,0.26658393,652.99,652.61,2.29560241]
[1749422799434,0.26658393,652.99,652.62,2.29560241]
[1749422800233,0.26658393,652.99,652.61,2.29560241]
[1749422800737,0.26658393,652.99,652.62,2.29560241]
[1749422801137,0.26658393,652.99,652.2,0.3066544]
[1749422801138,0.26658393,652.99,652.61,2.29560241]
[1749422802233,1.447,652.98,652.61,2.29560241]
[1749422803136,1.447,652.98,652.62,2.29560241]
[1749422803546,1.447,652.98,652.45,2.29560241]
[1749422806244,1.447,652.98,652.48,2.29560241]
[1749422808343,1.447,652.98,652.47,2.29560241]
[1749422813449,1.447,652.98,652.64,2.29560241]
[1749422816258,1.447,652.98,652.65,2.29560241]
[1749422816853,1.447,652.98,652.62,2.29560241]
[1749422818557,1.447,652.98,652.63,2.29560241]
[1749422819256,0.26658393,652.99,652.63,2.29560241]
[1749422822961,1.522,652.98,652.63,2.29560241]
[1749422826667,1.522,652.98,652.66,2.29560241]
[1749422827264,1.522,652.98,652.65,2.29560241]
[1749422828364,1.522,652.98,652.64,2.29560241]
[1749422829867,1.522,652.98,652.63,2.29560241]
[1749422830065,1.522,652.98,652.62,2.29560241]
[1749422830469,1.522,652.98,652.61,2.29560241]
[1749422830666,1.522,652.98,652.65,2.29560241]
[1749422830870,1.522,652.98,652.64,2.29560241]
[1749422834070,1.522,652.98,652.63,2.29560241]
[1749422836173,1.522,652.98,652.62,2.29560241]
[1749422837173,1.522,652.98,652.63,2.29560241]
[1749422837366,1.522,652.98,652.62,2.29560241]
[1749422839972,1.522,652.98,652.63,2.29560241]
[1749422840170,1.522,652.98,652.64,2.29560241]
[1749422840573,1.522,652.98,652.65,2.29560241]
[1749422841874,1.522,652.98,652.59,2.29560241]
[1749422843670,1.522,652.98,652.58,2.29560241]
[1749422846075,1.522,652.98,652.59,2.29560241]
[1749422848977,1.522,652.98,652.5,2.29560241]
[1749422849177,2.5896075,652.98,652.5,2.29560241]
[1749422849377,2.5896075,652.98,652.2,0.3066544]
[1749422849378,1.522,652.98,652.47,2.29560241]
[1749422850178,2.58912167,652.98,652.47,2.29560241]
[1749422851575,1.522,652.98,652.47,2.29560241]
[1749422851778,1.522,652.98,652.2,0.3066544]
[1749422851779,1.522,652.98,652.49,2.29560241]
[1749422851976,2.58912167,652.98,652.48,2.29560241]
[1749422852876,1.522,652.98,652.49,2.29560241]
[1749422855878,2.58957511,652.98,652.48,2.29560241]
[1749422856381,2.58957511,652.98,652.49,2.29560241]
[1749422856580,2.58957511,652.98,652.48,2.29560241]
[1749422857184,1.522,652.98,652.48,2.29560241]
[1749422857480,1.522,652.98,652.49,2.29560241]
[1749422857786,2.58957511,652.98,652.48,2.29560241]
[1749422858381,1.522,652.98,652.49,2.29560241]
[1749422858580,1.06757511,652.97,652.49,2.29560241]
[1749422858884,1.06757511,652.96,652.25,2.29560241]
[1749422859085,1.06757511,652.95,652.26,2.29560241]
[1749422859285,1.06757511,652.94,652.26,2.29560241]
[1749422859585,1.06757511,652.93,652.22,2.29560241]
[1749422859781,1.06757511,652.92,652.22,2.29560241]
[1749422859985,1.06757511,652.91,652.22,2.29560241]
[1749422860281,1.06757511,652.9,652.21,2.29560241]
[1749422860480,1.06757511,652.89,652.21,2.29560241]
[1749422860681,1.06757511,652.97,652.2,2.60225681]
[1749422860881,1.06757511,652.96,652.2,2.60225681]
[1749422861083,1.06757511,652.95,652.2,2.60225681]
[1749422861286,1.522,652.98,652.2,2.60225681]
[1749422861287,1.06757511,652.94,652.2,0.3066544]
[1749422861583,1.06757511,652.93,652.2,0.3066544]
[1749422861787,1.06757511,652.92,652.2,0.3066544]
[1749422861987,1.06757511,652.91,652.2,0.3066544]
[1749422862185,1.06757511,652.9,652.2,0.3066544]
[1749422862383,0.26658393,652.99,652.2,0.3066544]
[1749422862384,1.06757511,652.98,652.2,0.3066544]
[1749422862589,1.06757511,652.97,652.2,0.3066544]
[1749422862789,1.06757511,652.96,652.2,0.3066544]
[1749422862984,1.06757511,652.95,652.2,0.3066544]
[1749422863186,1.06757511,652.94,652.2,0.3066544]
[1749422863385,1.06757511,652.93,652.2,0.3066544]
[1749422863589,1.06757511,652.98,652.2,0.3066544]
[1749422863787,1.06757511,652.97,652.2,0.3066544]
[1749422863989,1.06757511,652.96,652.2,0.3066544]
[1749422864191,1.06757511,652.95,652.2,0.3066544]
[1749422864492,1.06757511,652.98,652.2,0.3066544]
[1749422864691,1.06757511,652.97,652.22,2.29560241]
[1749422864887,1.619,652.97,652.22,2.29560241]
[1749422865087,2.68657511,652.97,652.22,2.29560241]
[1749422865293,1.06403274,652.96,652.22,2.29560241]
[1749422866090,1.619,652.97,652.22,2.29560241]
[1749422866386,1.619,652.97,652.21,2.29560241]
[1749422866989,1.619,652.97,652.22,2.29560241]
[1749422867292,1.619,652.97,652.21,2.29560241]
[1749422868393,1.619,652.97,652.22,2.29560241]
[1749422868689,1.619,652.97,652.2,0.3066544]
[1749422868690,1.619,652.97,652.34,2.29560241]
[1749422868893,1.619,652.97,652.36,2.29560241]
[1749422869088,1.619,652.97,652.39,2.29560241]
[1749422869487,1.619,652.97,652.38,2.29560241]
[1749422869892,1.619,652.97,652.39,2.29560241]
[1749422870495,1.619,652.97,652.38,2.29560241]
[1749422873391,1.619,652.97,652.3,2.29560241]
[1749422875697,1.619,652.97,652.29,2.29560241]
[1749422876893,1.619,652.97,652.28,2.29560241]
[1749422878596,1.619,652.97,652.26,2.29560241]
[1749422883399,1.619,652.97,652.32,2.29560241]
[1749422883601,1.06403274,652.96,652.2,0.3066544]
[1749422883903,1.06403274,652.95,652.2,0.3066544]
[1749422884103,1.06403274,652.96,652.2,0.3066544]
[1749422884299,1.06403274,652.95,651.9,2.29560241]
[1749422884501,1.06403274,652.94,651.85,2.29560241]
[1749422884702,1.06403274,652.93,651.84,2.29560241]
[1749422884899,1.06403274,652.92,651.84,2.29560241]
[1749422885100,1.06403274,652.91,651.83,2.29560241]
[1749422885402,1.06403274,652.9,651.82,2.29560241]
[1749422885606,1.06403274,652.89,651.65,0.26671163]
[1749422885902,2.1558186,652.96,651.66,0.30690851]
[1749422886202,1.06403274,652.95,651.66,0.30690851]
[1749422886406,1.06403274,652.94,651.66,0.30690851]
[1749422886602,1.06403274,652.93,651.66,0.30690851]
[1749422886905,1.06403274,652.92,651.66,0.30690851]
[1749422887102,1.06403274,652.96,651.66,0.30690851]
[1749422887302,1.06403274,652.95,651.66,0.30690851]
[1749422887506,2.15386235,652.96,651.66,0.30690851]
[1749422887803,1.06403274,652.95,651.66,0.30690851]
[1749422888501,1.06403274,652.96,651.66,0.30690851]
[1749422888703,2.15323473,652.96,651.66,0.30690851]
[1749422888904,1.06403274,652.96,651.66,0.30690851]
[1749422889104,2.1532322,652.96,651.66,0.30690851]
[1749422889302,1.06403274,652.96,651.66,0.30690851]
[1749422889807,1.619,652.97,651.66,0.30690851]
[1749422890102,3.77223224,652.97,651.66,0.30690851]
[1749422890303,1.06403274,652.96,651.66,0.30690851]
[1749422890506,0.26673718,652.65,651.66,0.30690851]
[1749422912228,0.26673718,652.65,652.01,2.28324008]
[1749422912630,0.26673718,652.65,652.02,2.28324008]
[1749422912831,0.26673718,652.65,652.03,2.28324008]
[1749422913433,0.26673718,652.65,652.04,2.28324008]
[1749422913632,0.26673718,652.65,652.05,2.28324008]
[1749422914234,0.26673718,652.65,652.06,2.28324008]
[1749422914635,0.26673718,652.65,652.07,2.28324008]
[1749422915030,0.26673718,652.65,652.09,2.28324008]
[1749422915630,0.26673718,652.65,652.11,2.28324008]
[1749422915934,0.26673718,652.65,652.03,2.28324008]
[1749422916334,0.26673718,652.65,652.04,2.28324008]
[1749422916531,0.26673718,652.65,652.06,2.28324008]
[1749422917433,0.26673718,652.65,652.07,2.28324008]
[1749422918032,0.26673718,652.65,652.08,2.28324008]
[1749422918436,0.26673718,652.65,652.06,2.28324008]
[1749422918737,0.26673718,652.65,652.07,2.28324008]
[1749422919938,0.26673718,652.65,652.08,2.28324008]
[1749422920736,0.26673718,652.65,652.07,2.28324008]
[1749422921239,0.26673718,652.65,652.08,2.28324008]
[1749422923538,0.26673718,652.65,652.09,2.28324008]
[1749422924039,0.26673718,652.65,652.08,2.28324008]
[1749422924643,0.26673718,652.65,652.09,2.28324008]
[1749422925342,0.26673718,652.65,652.08,2.28324008]
[1749422925641,0.26673718,652.65,652.14,2.28324008]
[1749422926439,1.469,652.64,652.11,2.28324008]
[1749422926641,1.469,652.64,652.1,2.28324008]
[1749422926841,1.469,652.64,652.03,2.28324008]
[1749422927444,1.469,652.64,652.02,2.28324008]
[1749422927745,1.469,652.64,652.03,2.28324008]
[1749422928550,1.469,652.64,652.01,2.28324008]
[1749422929245,1.469,652.64,652.0,2.28324008]
[1749422929646,1.469,652.64,652.01,2.28324008]
[1749422930146,1.469,652.64,652.0,2.28324008]
[1749422930446,1.469,652.64,652.01,2.28324008]
[1749422932452,2.53303274,652.64,652.01,2.28324008]
[1749422932655,1.469,652.64,652.01,2.28324008]
[1749422933549,1.469,652.64,652.02,2.28324008]
[1749422936356,1.469,652.64,652.07,2.28324008]
[1749422936757,1.469,652.64,651.66,0.30690851]
[1749422936758,1.469,652.64,652.08,2.28324008]
[1749422938157,1.469,652.64,652.07,2.28324008]
[1749422938560,1.469,652.64,652.08,2.28324008]
[1749422939559,1.469,652.64,652.06,2.28324008]
[1749422939758,1.469,652.64,652.04,2.28324008]
[1749422940258,1.469,652.64,651.99,2.28324008]
[1749422940464,2.52711632,652.64,651.9,2.28324008]
[1749422940659,2.69556789,652.63,651.77,2.28324008]
[1749422940859,1.13975961,652.54,651.46,2.28324008]
[1749422941064,1.13975961,652.52,650.77,3.78666608]
[1749422941259,1.05811632,652.51,651.16,0.26688242]
[1749422941459,1.05811632,652.5,651.16,0.26688242]
[1749422941658,1.05811632,652.49,651.16,0.26688242]
[1749422941859,1.05811632,652.48,651.16,0.26688242]
[1749422942164,1.05811632,652.47,651.16,0.26688242]
[1749422942366,1.05811632,652.46,651.16,0.26688242]
[1749422942664,1.05811632,652.45,651.16,0.26688242]
[1749422942860,1.469,652.64,651.16,0.26688242]
[1749422942861,1.05811632,652.44,651.16,0.26688242]
[1749422943064,1.05811632,652.43,651.16,0.26688242]
[1749422943261,1.05811632,652.42,651.16,0.26688242]
[1749422943562,1.05811632,652.41,651.16,0.26688242]
[1749422943764,1.05811632,652.4,651.16,0.26688242]
[1749422943961,1.05811632,652.39,651.16,0.26688242]
[1749422944262,1.05811632,652.38,651.16,0.26688242]
[1749422944466,1.05811632,652.37,651.16,0.26688242]
[1749422944666,2.69849608,652.6,651.16,0.26688242]
[1749422944861,2.14344496,652.59,651.16,0.26688242]
[1749422945065,1.05811632,652.58,651.16,0.26688242]
[1749422945261,1.05811632,652.57,651.16,0.26688242]
[1749422945461,1.05811632,652.56,651.16,0.26688242]
[1749422945665,1.05811632,652.55,651.16,0.26688242]
[1749422945862,1.05811632,652.54,651.16,0.26688242]
[1749422946062,1.05811632,652.53,651.16,0.26688242]
[1749422946261,1.05811632,652.52,650.75,3.78666608]
[1749422946466,0.26691517,652.21,651.26,0.26691517]
[1749422946667,0.26691517,652.21,650.75,3.78666608]
[1749422946865,0.26691517,652.21,650.77,3.78666608]
[1749422947269,0.26691517,652.21,650.76,3.78666608]
[1749422948071,0.26691517,652.21,651.12,0.26690903]
[1749422967080,0.26691517,652.21,651.12,4.05357511]
[1749422967584,0.26691517,652.21,651.18,3.78666608]
[1749422967782,0.26691517,652.21,651.2,0.3071253]
[1749422968481,0.26691517,652.21,651.2,4.09379138]
[1749422968885,0.26691517,652.21,651.2,0.3071253]
[1749422973385,1.248,652.2,651.2,0.3071253]
[1749422980793,1.248,652.2,651.23,3.78666608]
[1749422980998,1.248,652.2,651.25,0.30710172]
[1749422983395,1.248,652.2,651.26,3.78666608]
[1749422983698,1.248,652.2,651.28,0.30708758]
[1749422984094,1.248,652.2,651.83,2.28820672]
[1749422984698,1.248,652.2,651.84,2.28820672]
[1749422984895,1.248,652.2,651.28,4.09375366]
[1749422984896,1.248,652.2,651.82,2.28820672]
[1749422985701,1.248,652.2,651.83,2.28820672]
[1749422986302,1.248,652.2,651.88,2.28820672]
[1749422986603,1.248,652.2,651.89,2.28820672]
[1749422986799,1.248,652.2,651.88,2.28820672]
[1749422987299,1.248,652.2,651.9,2.28820672]
[1749422987603,0.26682001,652.3,651.9,2.28820672]
[1749422988006,0.26682001,652.3,651.91,2.28820672]
[1749422988503,0.26682001,652.3,651.93,2.28820672]
[1749422988904,0.26682001,652.3,651.92,2.28820672]
[1749422989209,0.26682001,652.3,651.93,2.28820672]
[1749422990508,1.405,652.29,651.93,2.28820672]
[1749422991309,1.405,652.29,651.94,2.28820672]
[1749422994009,1.405,652.29,651.63,2.28820672]
[1749422994214,1.405,652.29,651.64,0.30691793]
[1749422996912,1.405,652.29,651.64,2.59512465]
[1749422998610,1.405,652.29,651.64,0.30691793]
[1749423000911,1.405,652.29,651.65,2.28820672]
[1749423001113,1.405,652.29,651.66,0.30690851]
[1749423007619,0.26682001,652.3,651.66,0.30690851]
[1749423010320,1.382,652.29,651.66,0.30690851]
[1749423029136,0.26682001,652.3,651.66,0.30690851]
[1749423031240,0.26682001,652.3,651.12,0.26690903]
[1749423031538,0.26682001,652.3,651.14,0.3071536]
[1749423032236,1.239,652.29,651.14,0.3071536]
[1749423056761,1.239,652.29,651.24,3.78666608]
[1749423056959,1.239,652.29,651.25,0.30710172]
[1749423057761,1.239,652.29,651.25,4.0937678]
[1749423058667,1.239,652.29,651.27,3.78666608]
[1749423058866,1.239,652.29,651.28,0.30708758]
[1749423063068,1.239,652.29,651.28,4.09375366]
[1749423063469,1.239,652.29,651.28,0.30708758]
[1749423064467,1.239,652.29,651.33,3.78666608]
[1749423064666,1.239,652.29,651.34,0.30705929]
[1749423068070,1.239,652.29,651.34,4.09372537]
[1749423068470,1.239,652.29,651.39,3.78666608]
[1749423068671,1.239,652.29,651.4,0.30703101]
[1749423068872,1.239,652.29,651.41,3.78666608]
[1749423069072,1.239,652.29,651.42,0.30702158]
[1749423080378,0.26682001,652.3,651.42,0.30702158]
[1749423084182,1.687,652.29,651.42,0.30702158]
[1749423087884,1.687,652.29,651.47,3.78666608]
[1749423088386,1.687,652.29,651.48,3.78666608]
[1749423088889,1.687,652.29,651.46,3.78666608]
[1749423089089,1.687,652.29,651.46,4.09366881]
[1749423092794,1.687,652.29,651.47,4.09366409]
[1749423092989,1.687,652.29,651.48,0.3069933]
[1749423109202,1.687,652.29,651.79,2.29312725]
[1749423113410,1.687,652.29,651.8,2.29312725]
[1749423114304,1.687,652.29,651.81,2.29312725]
[1749423114711,1.687,652.29,651.8,2.29312725]
[1749423115212,1.687,652.29,651.79,2.29312725]
[1749423115409,1.687,652.29,651.93,2.29312725]
[1749423115613,1.687,652.29,651.92,2.29312725]
[1749423116014,1.687,652.29,651.95,2.29312725]
[1749423116816,1.687,652.29,651.96,2.29312725]
[1749423118015,1.687,652.29,651.95,2.29312725]
[1749423118411,1.687,652.29,651.96,2.29312725]
[1749423118616,1.687,652.29,651.97,2.29312725]
[1749423118812,1.687,652.29,651.96,2.29312725]
[1749423119812,1.687,652.29,651.93,2.29312725]
[1749423120014,1.687,652.29,651.9,2.29312725]
[1749423120418,1.687,652.29,651.85,2.29312725]
[1749423121120,1.687,652.29,651.84,2.29312725]
[1749423121617,1.687,652.29,651.81,2.29312725]
[1749423122419,1.687,652.29,651.8,2.29312725]
[1749423123219,1.687,652.29,651.79,2.29312725]
[1749423123425,1.687,652.29,651.78,2.29312725]
[1749423124026,1.687,652.29,651.77,2.29312725]
[1749423124424,1.687,652.29,651.48,0.3069933]
[1749423124425,1.687,652.29,651.75,2.29312725]
[1749423125125,1.687,652.29,651.48,0.3069933]
[1749423125126,1.687,652.29,651.74,2.29312725]
[1749423126922,1.687,652.29,651.75,2.29312725]
[1749423127123,1.687,652.29,651.74,2.29312725]
[1749423130226,1.687,652.29,651.75,2.29312725]